fUSD/lending_fUSD_20260427
["ID","MTS","AMOUNT","RATE_DAILY","PERIOD"]
[421203169,1777243840682,-17281.12410002,8.1e-05,2]
[421203170,1777243840694,-8994.11514348,8.1e-05,2]
[421203171,1777243840706,-705.60285014,8.1e-05,2]
[421203189,1777243845976,-152.0,8.008e-05,2]
[421203190,1777243845987,-98.44,8.008e-05,2]
[421203191,1777243846490,-53.56,8.008e-05,2]
[421203192,1777243846501,-18745.72192885,8.1e-05,2]
[421203193,1777243846617,-465.67438953,8.1e-05,2]
[421203194,1777243846632,-5618.91750136,8.1e-05,2]
[421203230,1777244806342,199.996,0.00032877,120]
[421203231,1777244829361,7605.0,0.0003287,120]
[421203240,1777244980447,325.0,0.0003287,120]
[421203243,1777245031919,-150.0,7.175e-05,2]
[421203244,1777245031929,-150.0,7.175e-05,2]
[421203246,1777245031939,-150.0,7.175e-05,2]
[421203247,1777245031948,-150.0,7.175e-05,2]
[421203248,1777245031957,-150.0,7.175e-05,2]
[421203249,1777245031967,-150.0,7.175e-05,2]
[421203250,1777245031976,-150.0,7.175e-05,2]
[421203251,1777245031986,-250.0,7.206e-05,2]
[421203252,1777245031995,-150.0,7.237e-05,2]
[421203253,1777245032004,-150.0,7.289e-05,2]
[421203254,1777245032014,-1200.0,7.297e-05,2]
[421203255,1777245032024,-150.0,7.298e-05,2]
[421203256,1777245032033,-150.0,7.359e-05,2]
[421203258,1777245032043,-150.0,7.375e-05,2]
[421203260,1777245032052,-150.0,7.403e-05,2]
[421203262,1777245032061,-150.0,7.421e-05,2]
[421203264,1777245032071,-150.0,7.441e-05,2]
[421203266,1777245032080,-150.0,7.441e-05,2]
[421203267,1777245032090,-150.0,7.482e-05,2]
[421203270,1777245032100,-150.0,7.517e-05,2]
[421203272,1777245032109,-150.0,7.543e-05,2]
[421203274,1777245032119,-150.0,7.574e-05,2]
[421203276,1777245032129,-150.0,7.574e-05,2]
[421203278,1777245032138,-300.0,7.601e-05,2]
[421203280,1777245032148,-300.0,7.602e-05,2]
[421203282,1777245032157,-150.0,7.605e-05,2]
[421203284,1777245032171,-150.0,7.631e-05,2]
[421203286,1777245032181,-150.0,7.666e-05,2]
[421203288,1777245032190,-1700.0,7.7e-05,2]
[421203290,1777245032200,-150.0,7.707e-05,2]
[421203292,1777245032210,-150.0,7.707e-05,2]
[421203294,1777245032222,-150.0,7.727e-05,2]
[421203296,1777245032231,-150.0,7.745e-05,2]
[421203298,1777245032241,-150.0,7.773e-05,2]
[421203300,1777245032250,-150.0,7.789e-05,2]
[421203303,1777245032261,-150.0,7.789e-05,2]
[421203305,1777245032271,-3500.0,7.8e-05,2]
[421203306,1777245032280,-1239.45126996,7.839e-05,2]
[421203318,1777245032946,-516.80872837,7.839e-05,2]
[421203319,1777245032965,-1997.20100167,7.839e-05,2]
[421203320,1777245032975,-309.868,7.839e-05,2]
[421203321,1777245032985,-150.0,7.85e-05,2]
[421203322,1777245032995,-150.0,7.859e-05,2]
[421203323,1777245033005,-250.0,7.893e-05,2]
[421203324,1777245033014,-250.0,7.893e-05,2]
[421203325,1777245033024,-1040.5925,7.899e-05,2]
[421203326,1777245033033,-1213.50345449,7.899e-05,2]
[421203327,1777245033045,-4423.47106424,7.899e-05,2]
[421203328,1777245033054,-5300.0,7.9e-05,2]
[421203329,1777245033064,-810.43848707,7.9e-05,2]
[421203330,1777245033073,-1000.0,7.9e-05,2]
[421203331,1777245033083,-1000.0,7.9e-05,2]
[421203332,1777245033092,-691.5257146,7.9e-05,2]
[421203333,1777245033104,-308.4742854,7.9e-05,2]
[421203334,1777245033113,-1000.0,7.9e-05,2]
[421203335,1777245033123,-157.9857146,7.9e-05,2]
[421203336,1777245033146,-842.0142854,7.9e-05,2]
[421203337,1777245033156,-1000.0,7.9e-05,2]
[421203338,1777245033165,-452.9857146,7.9e-05,2]
[421203339,1777245033185,-547.0142854,7.9e-05,2]
[421203340,1777245033196,-259.93794256,7.907e-05,2]
[421203341,1777245033205,-578.20924308,7.907e-05,2]
[421203342,1777245033215,-150.0,7.911e-05,2]
[421203343,1777245033224,-4012.0,7.973e-05,2]
[421203344,1777245033234,-281.33641252,7.973e-05,2]
[421203345,1777245033243,-104.63826369,7.973e-05,2]
[421203350,1777245038159,-45.36173631,7.973e-05,2]
[421203351,1777245038168,-200.21621423,7.973e-05,2]
[421203352,1777245038177,-150.0,7.973e-05,2]
[421203353,1777245038187,-150.0,7.973e-05,2]
[421203354,1777245038196,-1.87862376,7.973e-05,2]
[421203355,1777245038309,-206.69863039,7.973e-05,2]
[421203356,1777245038319,-200.0,7.994e-05,2]
[421203357,1777245038328,-1191.11104075,7.994e-05,2]
[421203358,1777245038337,-601.3376128,7.994e-05,2]
[421203359,1777245038347,-151.0,7.994e-05,2]
[421203360,1777245038356,-174.61919141,7.994e-05,2]
[421203361,1777245038366,-440.19572035,7.994e-05,2]
[421203362,1777245038389,-303.31198114,7.994e-05,2]
[421203363,1777245038398,-174.61919141,7.994e-05,2]
[421203364,1777245038408,-244.46600838,7.994e-05,2]
[421203365,1777245038417,-279.9045709,7.994e-05,2]
[421203366,1777245038426,-174.61919141,7.994e-05,2]
[421203367,1777245038435,-599.02063136,7.997e-05,2]
[421203368,1777245038445,-599.02063136,7.997e-05,2]
[421203369,1777245038454,-153.52285828,7.997e-05,2]
[421203375,1777245039972,-338.004,7.997e-05,2]
[421203377,1777245040031,-107.49377308,7.997e-05,2]
[421203378,1777245040041,-599.02063136,7.997e-05,2]
[421203379,1777245040050,-599.02063136,7.997e-05,2]
[421203380,1777245040059,-587.6635112,7.997e-05,2]
[421203381,1777245040079,-11.35712016,7.997e-05,2]
[421203382,1777245040088,-599.02063136,7.997e-05,2]
[421203383,1777245040097,-303.18242914,7.997e-05,2]
[421203384,1777245040109,-295.83820222,7.997e-05,2]
[421203385,1777245040118,-599.02063136,7.997e-05,2]
[421203386,1777245040126,-599.02063136,7.997e-05,2]
[421203387,1777245040135,-599.02063136,7.997e-05,2]
[421203388,1777245040144,-599.02063136,7.997e-05,2]
[421203389,1777245040154,-599.02063136,7.997e-05,2]
[421203390,1777245040163,-599.02063136,7.997e-05,2]
[421203391,1777245040172,-599.02063136,7.997e-05,2]
[421203392,1777245040182,-599.02063136,7.997e-05,2]
[421203393,1777245040192,-599.02063136,7.997e-05,2]
[421203394,1777245040201,-599.02063136,7.997e-05,2]
[421203395,1777245040210,-599.02063136,7.997e-05,2]
[421203396,1777245040219,-599.02063136,7.997e-05,2]
[421203397,1777245040229,-599.02063136,7.997e-05,2]
[421203398,1777245040239,-599.02063136,7.997e-05,2]
[421203399,1777245040248,-599.02063136,7.997e-05,2]
[421203400,1777245040257,-599.02063136,7.997e-05,2]
[421203401,1777245040266,-599.02063136,7.997e-05,2]
[421203402,1777245040275,-599.02063136,7.997e-05,2]
[421203403,1777245040285,-599.02063136,7.997e-05,2]
[421203404,1777245040294,-599.02063136,7.997e-05,2]
[421203405,1777245040303,-599.02063136,7.997e-05,2]
[421203406,1777245040312,-599.02063136,7.997e-05,2]
[421203407,1777245040321,-599.02063136,7.997e-05,2]
[421203408,1777245040330,-599.02063136,7.997e-05,2]
[421203409,1777245040340,-599.02063136,7.997e-05,2]
[421203410,1777245040349,-599.02063136,7.997e-05,2]
[421203411,1777245040359,-599.02063136,7.997e-05,2]
[421203412,1777245040368,-599.02063136,7.997e-05,2]
[421203413,1777245040378,-599.02063136,7.997e-05,2]
[421203414,1777245040387,-599.02063136,7.997e-05,2]
[421203415,1777245040397,-599.02063136,7.997e-05,2]
[421203416,1777245040406,-599.02063136,7.997e-05,2]
[421203417,1777245040416,-599.02063136,7.997e-05,2]
[421203418,1777245040426,-599.02063136,7.997e-05,2]
[421203419,1777245040435,-599.02063136,7.997e-05,2]
[421203420,1777245040444,-599.02063136,7.997e-05,2]
[421203421,1777245040454,-599.02063136,7.997e-05,2]
[421203422,1777245040463,-599.02063136,7.997e-05,2]
[421203423,1777245040473,-599.02063136,7.997e-05,2]
[421203424,1777245040483,-599.02063136,7.997e-05,2]
[421203425,1777245040493,-599.02063136,7.997e-05,2]
[421203426,1777245040502,-599.02063136,7.997e-05,2]
[421203427,1777245040512,-599.02063136,7.997e-05,2]
[421203428,1777245040521,-599.02063136,7.997e-05,2]
[421203429,1777245040531,-599.02063136,7.997e-05,2]
[421203430,1777245040540,-599.02063136,7.997e-05,2]
[421203431,1777245040550,-599.02063136,7.997e-05,2]
[421203432,1777245040559,-272.13552886,7.997e-05,2]
[421203433,1777245040630,-305.11934148,7.997e-05,2]
[421203449,1777245043008,-21.76576102,7.997e-05,2]
[421203450,1777245043018,-599.02063136,7.997e-05,2]
[421203451,1777245043028,-599.02063136,7.997e-05,2]
[421203452,1777245043037,-599.02063136,7.997e-05,2]
[421203453,1777245043047,-302.98164173,7.997e-05,2]
[421203454,1777245043115,-296.03898963,7.997e-05,2]
[421203455,1777245043125,-65.17921248,7.998e-05,2]
[421203456,1777245043136,-1172.02083631,7.998e-05,2]
[421203457,1777245043222,-372.27914492,7.998e-05,2]
[421203458,1777245043276,-1265.91989,7.998e-05,2]
[421203461,1777245045965,-7124.59091629,7.998e-05,2]
[421203462,1777245045974,-20004.3,7.998e-05,2]
[421203463,1777245045984,-299.99,7.998e-05,2]
[421203464,1777245045993,-6631.55,7.998e-05,2]
[421203465,1777245046003,-8309.4698559,7.998e-05,2]
[421203466,1777245046014,-1449.26927114,7.998e-05,2]
[421203467,1777245046026,-350.88499915,7.998e-05,2]
[421203468,1777245046040,-8470.23587381,7.998e-05,2]
[421203469,1777245046049,-310.57331736,7.998e-05,2]
[421203470,1777245046058,-24999.99,7.998e-05,2]
[421203471,1777245046067,-150.99,7.998e-05,2]
[421203472,1777245046076,-250.0,7.998e-05,2]
[421203473,1777245046086,-6943.6749573,7.998e-05,2]
[421203474,1777245046251,-2128.68306836,7.998e-05,2]
[421203475,1777245046306,-11546.86014265,7.998e-05,2]
[421203488,1777245280713,1489.00799506,0.0003287,120]
[421203493,1777245726829,500.0,0.00032876,120]
[421203494,1777245727057,500.0,0.00032876,120]
[421203495,1777245727277,500.0,0.00032876,120]
[421203496,1777245727510,500.0,0.00032876,120]
[421203497,1777245727866,500.0,0.00032876,120]
[421203498,1777245728368,500.0,0.00032876,120]
[421203499,1777245728622,500.0,0.00032876,120]
[421203500,1777245728849,500.0,0.00032876,120]
[421203501,1777245729069,500.0,0.00032876,120]
[421203502,1777245729320,500.0,0.00032876,120]
[421203503,1777245729529,500.0,0.00032876,120]
[421203504,1777245729753,500.0,0.00032876,120]
[421203505,1777245729985,500.0,0.00032876,120]
[421203506,1777245730206,410.01773092,0.00032876,120]
[421203507,1777245873615,-250.0,7.643e-05,2]
[421203508,1777245873638,-3002.769,7.644e-05,2]
[421203509,1777245873660,-247.894,7.644e-05,2]
[421203510,1777245873683,-250.0,7.721e-05,2]
[421203511,1777245873706,-250.0,7.768e-05,2]
[421203512,1777245873729,-723.0,7.796e-05,2]
[421203513,1777245873752,-276.337,7.797e-05,2]
[421203514,1777245875455,-923.663,7.797e-05,2]
[421203515,1777245875479,-300.0,7.797e-05,2]
[421203516,1777245875502,-300.0,7.798e-05,2]
[421203517,1777245875524,-150.0,7.798e-05,2]
[421203518,1777245875546,-500.0,7.799e-05,2]
[421203519,1777245875567,-167.97665027,7.799e-05,2]
[421203520,1777245875592,-320.05920402,7.799e-05,2]
[421203521,1777245875615,-607.92760425,7.799e-05,2]
[421203522,1777245875637,-500.0,7.799e-05,2]
[421203523,1777245875658,-500.0,7.799e-05,2]
[421203524,1777245875681,-500.0,7.799e-05,2]
[421203525,1777245875705,-230.37354146,7.799e-05,2]
[421203526,1777245876709,-269.62645854,7.799e-05,2]
[421203527,1777245876738,-500.0,7.799e-05,2]
[421203528,1777245876765,-500.0,7.799e-05,2]
[421203529,1777245876793,-561.91787879,7.799e-05,2]
[421203530,1777245876822,-500.0,7.799e-05,2]
[421203531,1777245876851,-500.0,7.799e-05,2]
[421203532,1777245876879,-500.0,7.799e-05,2]
[421203533,1777245876908,-500.0,7.799e-05,2]
[421203534,1777245876936,-500.0,7.799e-05,2]
[421203535,1777245876964,-500.0,7.799e-05,2]
[421203536,1777245876993,-168.45566267,7.799e-05,2]
[421203537,1777245877155,-331.54433733,7.799e-05,2]
[421203538,1777245877185,-500.0,7.799e-05,2]
[421203539,1777245877214,-500.0,7.799e-05,2]
[421203540,1777245877243,-500.0,7.799e-05,2]
[421203541,1777245877273,-500.0,7.799e-05,2]
[421203542,1777245877303,-500.0,7.799e-05,2]
[421203543,1777245877333,-619.3570834,7.799e-05,2]
[421203544,1777245877362,-619.3570834,7.799e-05,2]
[421203545,1777245877390,-619.3570834,7.799e-05,2]
[421203546,1777245877420,-310.38441247,7.799e-05,2]
[421203547,1777245877567,-308.97267093,7.799e-05,2]
[421203548,1777245877598,-619.3570834,7.799e-05,2]
[421203549,1777245877630,-619.3570834,7.799e-05,2]
[421203550,1777245877661,-619.3570834,7.799e-05,2]
[421203551,1777245877690,-619.3570834,7.799e-05,2]
[421203552,1777245877720,-619.3570834,7.799e-05,2]
[421203553,1777245877750,-619.3570834,7.799e-05,2]
[421203554,1777245877779,-619.3570834,7.799e-05,2]
[421203555,1777245877808,-355.52774527,7.799e-05,2]
[421203556,1777245877889,-263.82933813,7.799e-05,2]
[421203557,1777245877919,-619.3570834,7.799e-05,2]
[421203558,1777245877948,-619.3570834,7.799e-05,2]
[421203559,1777245877979,-619.3570834,7.799e-05,2]
[421203560,1777245878009,-619.3570834,7.799e-05,2]
[421203561,1777245878037,-619.3570834,7.799e-05,2]
[421203562,1777245878067,-619.3570834,7.799e-05,2]
[421203563,1777245878095,-619.3570834,7.799e-05,2]
[421203564,1777245878123,-400.67107807,7.799e-05,2]
[421203565,1777245878212,-218.68600533,7.799e-05,2]
[421203566,1777245878242,-619.3570834,7.799e-05,2]
[421203567,1777245878270,-619.3570834,7.799e-05,2]
[421203568,1777245878298,-619.3570834,7.799e-05,2]
[421203569,1777245878327,-619.3570834,7.799e-05,2]
[421203570,1777245878356,-619.3570834,7.799e-05,2]
[421203571,1777245878385,-619.3570834,7.799e-05,2]
[421203572,1777245878413,-619.3570834,7.799e-05,2]
[421203573,1777245878442,-445.81441087,7.799e-05,2]
[421203574,1777245879538,-173.54267253,7.799e-05,2]
[421203575,1777245879567,-619.3570834,7.799e-05,2]
[421203576,1777245879596,-619.3570834,7.799e-05,2]
[421203577,1777245879624,-619.3570834,7.799e-05,2]
[421203578,1777245879653,-619.3570834,7.799e-05,2]
[421203579,1777245879681,-619.3570834,7.799e-05,2]
[421203580,1777245879709,-619.3570834,7.799e-05,2]
[421203581,1777245879738,-619.3570834,7.799e-05,2]
[421203582,1777245879766,-490.95774367,7.799e-05,2]
[421203583,1777245879825,-128.39933973,7.799e-05,2]
[421203584,1777245879852,-619.3570834,7.799e-05,2]
[421203585,1777245879880,-619.3570834,7.799e-05,2]
[421203586,1777245879906,-619.3570834,7.799e-05,2]
[421203587,1777245879933,-619.3570834,7.799e-05,2]
[421203588,1777245879960,-619.3570834,7.799e-05,2]
[421203589,1777245879986,-619.3570834,7.799e-05,2]
[421203590,1777245880014,-619.3570834,7.799e-05,2]
[421203591,1777245880041,-536.10107647,7.799e-05,2]
[421203592,1777245880098,-83.25600693,7.799e-05,2]
[421203593,1777245880127,-619.3570834,7.799e-05,2]
[421203594,1777245880156,-619.3570834,7.799e-05,2]
[421203595,1777245880187,-619.3570834,7.799e-05,2]
[421203596,1777245880218,-619.3570834,7.799e-05,2]
[421203597,1777245880251,-600.43228364,7.799e-05,2]
[421203598,1777245880281,-600.43228364,7.799e-05,2]
[421203599,1777245880311,-600.43228364,7.799e-05,2]
[421203600,1777245880342,-600.43228364,7.799e-05,2]
[421203601,1777245880372,-37.58652491,7.799e-05,2]
[421203602,1777245880432,1236.6269016,0.00032876,120]
[421203603,1777245881379,-562.84575873,7.799e-05,2]
[421203604,1777245881408,-600.43228364,7.799e-05,2]
[421203605,1777245881436,-600.43228364,7.799e-05,2]
[421203606,1777245881463,-600.43228364,7.799e-05,2]
[421203607,1777245881490,-600.43228364,7.799e-05,2]
[421203608,1777245881517,-600.43228364,7.799e-05,2]
[421203609,1777245881545,-600.43228364,7.799e-05,2]
[421203610,1777245881572,-600.43228364,7.799e-05,2]
[421203611,1777245881600,-234.12825579,7.799e-05,2]
[421203612,1777245881779,-366.30402785,7.799e-05,2]
[421203613,1777245881811,-600.43228364,7.799e-05,2]
[421203614,1777245881841,-600.43228364,7.799e-05,2]
[421203615,1777245881873,-600.43228364,7.799e-05,2]
[421203616,1777245881901,-600.43228364,7.799e-05,2]
[421203617,1777245881931,-600.43228364,7.799e-05,2]
[421203618,1777245881961,-600.43228364,7.799e-05,2]
[421203619,1777245881990,-600.43228364,7.799e-05,2]
[421203620,1777245882017,-430.66998667,7.799e-05,2]
[421203621,1777245882264,-169.76229697,7.799e-05,2]
[421203622,1777245882292,-600.43228364,7.799e-05,2]
[421203623,1777245882323,-600.43228364,7.799e-05,2]
[421203624,1777245882353,-600.43228364,7.799e-05,2]
[421203625,1777245882382,-600.43228364,7.799e-05,2]
[421203626,1777245882410,-600.43228364,7.799e-05,2]
[421203627,1777245882444,-600.43228361,7.799e-05,2]
[421203628,1777245882469,-250.0,7.8e-05,2]
[421203629,1777245882496,-977.64400122,7.8e-05,2]
[421203630,1777245882565,-5000.0,7.8e-05,2]
[421203631,1777245882958,-5000.0,7.8e-05,2]
[421203632,1777245884900,-5000.0,7.8e-05,2]
[421203633,1777245885315,-5000.0,7.8e-05,2]
[421203634,1777245885759,-5000.0,7.8e-05,2]
[421203635,1777245890446,-5000.0,7.8e-05,2]
[421203636,1777245891564,-5000.0,7.8e-05,2]
[421203637,1777245892406,-5000.0,7.8e-05,2]
[421203638,1777245893190,-5000.0,7.8e-05,2]
[421203639,1777245893642,-5000.0,7.8e-05,2]
[421203640,1777245893987,-5000.0,7.8e-05,2]
[421203641,1777245894376,-5000.0,7.8e-05,2]
[421203642,1777245894851,-5000.0,7.8e-05,2]
[421203643,1777245896528,-5000.0,7.8e-05,2]
[421203644,1777245896929,-5000.0,7.8e-05,2]
[421203645,1777245897316,-5000.0,7.8e-05,2]
[421203646,1777245897711,-5000.0,7.8e-05,2]
[421203647,1777245898033,-5000.0,7.8e-05,2]
[421203648,1777245899454,-5000.0,7.8e-05,2]
[421203649,1777245901458,-5000.0,7.8e-05,2]
[421203650,1777245902469,-300.0,7.799e-05,2]
[421203651,1777245902496,-1200.0,7.799e-05,2]
[421203652,1777245902528,-3500.0,7.8e-05,2]
[421203653,1777245902601,150.0,7.003e-05,2]
[421203654,1777245902767,150.0,7.132e-05,2]
[421203655,1777245904235,-150.0,7.262e-05,2]
[421203656,1777245904263,-150.0,7.392e-05,2]
[421203657,1777245904290,-150.0,7.521e-05,2]
[421203658,1777245904316,-150.0,7.651e-05,2]
[421203659,1777245904346,-241.44878081,7.781e-05,2]
[421203660,1777245904380,-4158.55121919,7.8e-05,2]
[421203661,1777245906848,-5000.0,7.8e-05,2]
[421203662,1777245912538,150.0,7.003e-05,2]
[421203663,1777245913028,150.0,7.003e-05,2]
[421203664,1777245913062,150.0,7.132e-05,2]
[421203665,1777245916481,150.0,7.003e-05,2]
[421203666,1777245916727,-150.0,7.262e-05,2]
[421203667,1777245916750,-150.0,7.392e-05,2]
[421203668,1777245916773,-150.0,7.392e-05,2]
[421203669,1777245916796,-150.0,7.392e-05,2]
[421203670,1777245916818,-150.0,7.521e-05,2]
[421203671,1777245916841,-150.0,7.651e-05,2]
[421203672,1777245916865,-150.0,7.781e-05,2]
[421203673,1777245916887,-150.0,7.781e-05,2]
[421203674,1777245916909,-150.0,7.781e-05,2]
[421203675,1777245916936,-3150.0,7.8e-05,2]
[421203676,1777245919947,150.0,7.003e-05,2]
[421203677,1777245920022,150.0,7.081e-05,2]
[421203678,1777245923210,150.0,7.003e-05,2]
[421203679,1777245923360,150.0,7.1e-05,2]
[421203680,1777245930404,150.0,7.003e-05,2]
[421203681,1777245930561,150.0,7.003e-05,2]
[421203682,1777245930630,150.0,7.037e-05,2]
[421203683,1777245930671,150.0,7.073e-05,2]
[421203684,1777245930705,150.0,7.07e-05,2]
[421203685,1777245930766,150.0,7.104e-05,2]
[421203686,1777245930909,150.0,7.138e-05,2]
[421203687,1777245937339,156.0,0.000328,120]
[421203689,1777246002150,157.0,0.000328,120]
[421203690,1777246097269,459.16,1e-08,2]
[421203691,1777246098017,286.97,1e-08,2]
[421203692,1777246099966,172.18,2e-08,2]
[421203693,1777246100039,229.58,2e-08,2]
[421203720,1777246232757,-150.0,7.144e-05,2]
[421203721,1777246232767,-250.0,7.151e-05,2]
[421203722,1777246232776,-150.0,7.158e-05,2]
[421203723,1777246232786,-150.0,7.172e-05,2]
[421203724,1777246232795,-150.0,7.197e-05,2]
[421203725,1777246232805,-150.0,7.206e-05,2]
[421203726,1777246232814,-150.0,7.215e-05,2]
[421203727,1777246232823,-150.0,7.236e-05,2]
[421203728,1777246232832,-150.0,7.24e-05,2]
[421203729,1777246232842,-150.0,7.273e-05,2]
[421203730,1777246232851,-150.0,7.286e-05,2]
[421203731,1777246232861,-150.0,7.295e-05,2]
[421203732,1777246232870,-150.0,7.307e-05,2]
[421203733,1777246232879,-150.0,7.314e-05,2]
[421203734,1777246232889,-150.0,7.341e-05,2]
[421203735,1777246232899,-150.0,7.356e-05,2]
[421203736,1777246232908,-150.0,7.375e-05,2]
[421203737,1777246232918,-150.0,7.392e-05,2]
[421203738,1777246232927,-150.0,7.392e-05,2]
[421203739,1777246232937,-150.0,7.409e-05,2]
[421203740,1777246232946,-150.0,7.427e-05,2]
[421203741,1777246232956,-150.0,7.443e-05,2]
[421203742,1777246232965,-150.0,7.47e-05,2]
[421203743,1777246232975,-150.0,7.476e-05,2]
[421203744,1777246232984,-150.0,7.489e-05,2]
[421203745,1777246232994,-150.0,7.498e-05,2]
[421203746,1777246233004,-300.0,7.498e-05,2]
[421203747,1777246233013,-300.0,7.498e-05,2]
[421203748,1777246233024,-150.0,7.498e-05,2]
[421203749,1777246233034,-300.0,7.498e-05,2]
[421203750,1777246233044,-1200.0,7.498e-05,2]
[421203751,1777246233054,-150.0,7.51e-05,2]
[421203752,1777246233064,-150.0,7.544e-05,2]
[421203753,1777246233074,-150.0,7.547e-05,2]
[421203754,1777246233085,-150.0,7.569e-05,2]
[421203755,1777246233095,-150.0,7.578e-05,2]
[421203756,1777246233107,-150.0,7.586e-05,2]
[421203757,1777246233117,-150.0,7.612e-05,2]
[421203758,1777246233128,-150.0,7.625e-05,2]
[421203759,1777246233138,-150.0,7.639e-05,2]
[421203760,1777246233147,-150.0,7.646e-05,2]
[421203761,1777246233156,-150.0,7.679e-05,2]
[421203762,1777246233166,-150.0,7.684e-05,2]
[421203763,1777246233175,-1200.0,7.7e-05,2]
[421203764,1777246233184,-150.0,7.703e-05,2]
[421203765,1777246233194,-150.0,7.71e-05,2]
[421203766,1777246233203,-150.0,7.713e-05,2]
[421203767,1777246233213,-150.0,7.747e-05,2]
[421203768,1777246233223,-150.0,7.781e-05,2]
[421203769,1777246233234,-150.0,7.781e-05,2]
[421203770,1777246233243,-150.0,7.781e-05,2]
[421203771,1777246233252,-150.0,7.781e-05,2]
[421203772,1777246233262,-500.0,7.799e-05,2]
[421203773,1777246233271,-500.0,7.799e-05,2]
[421203774,1777246233280,-500.0,7.799e-05,2]
[421203775,1777246233290,-500.0,7.799e-05,2]
[421203776,1777246233299,-153.20056675,7.799e-05,2]
[421203777,1777246233309,-500.0,7.799e-05,2]
[421203778,1777246233319,-166.63549407,7.799e-05,2]
[421203779,1777246233328,-308.09394173,7.799e-05,2]
[421203780,1777246233339,-500.0,7.799e-05,2]
[421203781,1777246233348,-500.0,7.799e-05,2]
[421203782,1777246233357,-500.0,7.799e-05,2]
[421203783,1777246233367,-500.0,7.799e-05,2]
[421203784,1777246233376,-500.0,7.799e-05,2]
[421203785,1777246233386,-384.40285947,7.799e-05,2]
[421203786,1777246233396,-500.0,7.799e-05,2]
[421203787,1777246233405,-500.0,7.799e-05,2]
[421203788,1777246233414,-500.0,7.799e-05,2]
[421203789,1777246233424,-500.0,7.799e-05,2]
[421203790,1777246233433,-500.0,7.799e-05,2]
[421203791,1777246233442,-500.0,7.799e-05,2]
[421203792,1777246233453,-500.0,7.799e-05,2]
[421203793,1777246233463,-500.0,7.799e-05,2]
[421203794,1777246233472,-500.0,7.799e-05,2]
[421203795,1777246233482,-500.0,7.799e-05,2]
[421203796,1777246233491,-500.0,7.799e-05,2]
[421203797,1777246233501,-500.0,7.799e-05,2]
[421203798,1777246233511,-500.0,7.799e-05,2]
[421203799,1777246233520,-500.0,7.799e-05,2]
[421203800,1777246233530,-500.0,7.799e-05,2]
[421203801,1777246233539,-500.0,7.799e-05,2]
[421203802,1777246233549,-500.0,7.799e-05,2]
[421203803,1777246233558,-500.0,7.799e-05,2]
[421203804,1777246233568,-500.0,7.799e-05,2]
[421203805,1777246233577,-500.0,7.799e-05,2]
[421203806,1777246233587,-500.0,7.799e-05,2]
[421203807,1777246233596,-500.0,7.799e-05,2]
[421203808,1777246233605,-500.0,7.799e-05,2]
[421203809,1777246233615,-284.66766081,7.799e-05,2]
[421203810,1777246233625,-500.0,7.799e-05,2]
[421203811,1777246233634,-500.0,7.799e-05,2]
[421203812,1777246233643,-500.0,7.799e-05,2]
[421203813,1777246233653,-250.0,7.799e-05,2]
[421203814,1777246233662,-125636.20339676,7.8e-05,2]
[421203815,1777246233675,-355.00000001,7.8e-05,2]
[421203816,1777246233694,-3234.12967398,7.8e-05,2]
[421203817,1777246233715,-853523.87134855,7.8e-05,2]
[421203818,1777246233730,-9416.88004107,7.8e-05,2]
[421203819,1777246233760,-965.61194919,7.8e-05,2]
[421203822,1777246238170,-500.0,7.753e-05,2]
[421203823,1777246238179,-843.82,7.8e-05,2]
[421203824,1777246238191,-6936.65,7.8e-05,2]
[421203825,1777246238342,-202007.57501693,7.8e-05,2]
[421203826,1777246238407,-105585.4787745,7.8e-05,2]
[421203827,1777246238418,-187067.66560701,7.8e-05,2]
[421203828,1777246238508,-436.55899312,7.8e-05,2]
[421203831,1777246238519,-41627.80494876,7.8e-05,2]
[421203833,1777246238531,-646.50864285,7.8e-05,2]
[421203961,1777246242078,-18.37483606,7.8e-05,2]
[421204015,1777246243958,-200.0,7.7e-05,2]
[421204017,1777246243968,-624.0,7.8e-05,2]
[421204020,1777246243990,-426245.2942508,7.8e-05,2]
[421204022,1777246244000,-235.43,7.8e-05,2]
[421204024,1777246244012,-2400.0,7.8e-05,2]
[421204026,1777246244021,-250.0,7.859e-05,2]
[421204028,1777246244030,-212.89133452,7.859e-05,2]
[421204030,1777246244039,-193.0,7.859e-05,2]